fUSD/lending_fUSD_20251123
["ID","MTS","AMOUNT","RATE_DAILY","PERIOD"]
[394773885,1763934648856,-534.34,0.00039452,8]
[394773886,1763934648866,-500.0,0.00039452,8]
[394773887,1763934648875,-507.54,0.00039452,8]
[394773888,1763934648884,-500.0,0.00039452,8]
[394773889,1763934648894,-500.0,0.00039452,8]
[394773890,1763934648903,-500.0,0.00039452,8]
[394773891,1763934648911,-500.0,0.00039452,8]
[394773892,1763934648921,-534.72517911,0.00039452,8]
[394773893,1763934648930,-500.0,0.00039452,8]
[394773894,1763934648939,-500.0,0.00039452,8]
[394773895,1763934648948,-500.0,0.00039452,8]
[394773896,1763934648958,-500.0,0.00039452,8]
[394773897,1763934648966,-500.0,0.00039452,8]
[394773898,1763934648975,-1582.49933788,0.00039452,8]
[394773899,1763934648990,-276.37066212,0.00039452,8]
[394773900,1763934648999,-500.0,0.00039452,8]
[394773901,1763934649008,-500.0,0.00039452,8]
[394773902,1763934649018,-500.0,0.00039452,8]
[394773903,1763934649027,-500.0,0.00039452,8]
[394773904,1763934649036,-500.0,0.00039452,8]
[394773905,1763934649045,-500.0,0.00039452,8]
[394773906,1763934649054,-500.0,0.00039452,8]
[394773907,1763934649064,-500.0,0.00039452,8]
[394773908,1763934649074,-160.71486276,0.00039452,8]
[394773909,1763934649084,-500.0,0.00039452,8]
[394773910,1763934649094,-500.0,0.00039452,8]
[394773911,1763934649104,-500.0,0.00039452,8]
[394773912,1763934649113,-500.0,0.00039452,8]
[394773913,1763934649123,-23.12262209,0.00039478,2]
[394773914,1763934649174,-181.04222033,0.00039478,2]
[394773915,1763934649183,-1632.89,0.00039515,30]
[394773916,1763934649193,-331.66777967,0.00039615,3]
[394773917,1763934649203,-668.33222033,0.00039615,3]
[394773918,1763934649213,-61.96875141,0.00039679,2]
[394773919,1763934649229,-150.0,0.00037996,2]
[394773920,1763934649238,-474.68329021,0.00039679,2]
[394773921,1763934649248,-163.02218526,0.00039688,15]
[394773922,1763934649261,-1810.63398325,0.00039688,2]
[394773923,1763935209218,-500.0,0.00017,2]
[394773924,1763935234190,-194.62491358,0.00017,2]
[394773925,1763935234215,-18.00293827,0.00017,2]
[394773926,1763935234293,-181.37214815,0.00017,2]
[394773927,1763935234417,-57.06933535,0.00017,2]
[394773928,1763935343589,622.82,0.00013699,2]
[394773956,1763935831453,-209.3641883,0.000187,2]
[394773957,1763935831462,-300.0,0.00019025,2]
[394773958,1763935831472,-195.0,0.0001935,2]
[394773959,1763935831481,-300.0,0.00019761,2]
[394773960,1763935831491,-300.0,0.00019761,2]
[394773961,1763935831500,-181.0,0.0002,2]
[394773962,1763935831510,-622.82,0.00020187,2]
[394773963,1763935831519,-373.60999068,0.0002057,2]
[394773964,1763935831529,-195.0,0.0002057,2]
[394773965,1763935831538,-195.0,0.0002057,2]
[394773966,1763935831547,-300.0,0.0002057,2]
[394773967,1763935831557,-195.0,0.00020852,2]
[394773968,1763935831566,-3.1577672,0.00024709,2]
[394773969,1763935831578,-246.8422328,0.00024709,2]
[394773970,1763935831587,-150.1559,0.00024805,2]
[394773971,1763935831596,-173.07334155,0.00024945,48]
[394773972,1763935831605,-164.48462055,0.00025045,2]
[394773973,1763935831621,-135.51537945,0.00025045,2]
[394773974,1763935831630,-255.69536445,0.00025045,2]
[394773975,1763935831641,-708.30463555,0.00025045,2]
[394773976,1763935831651,-300.0,0.00025045,2]
[394773977,1763935831660,-896.83859806,0.00025046,2]
[394773978,1763935831672,-1335.80895032,0.00025046,2]
[394773979,1763935831683,-635.5909998,0.00025046,2]
[394773981,1763935831695,-254.05861234,0.00025046,2]
[394773983,1763935831703,-312.19748274,0.00025046,2]
[394773984,1763935831718,-102.59251726,0.00025046,2]
[394773985,1763935831728,-500.0,0.000251,2]
[394773986,1763935831737,-506.29642956,0.000251,2]
[394773987,1763935831747,-161.29036105,0.000251,2]
[394773988,1763935831757,-501.53916073,0.000251,2]
[394773989,1763935831765,-500.0,0.000251,2]
[394773990,1763935831775,-502.43033754,0.00025648,2]
[394773991,1763935831784,-426.56612961,0.00025949,2]
[394773992,1763935831793,-622.82,0.00026676,2]
[394773993,1763935831802,-420.0,0.0002713,2]
[394773994,1763935831815,-173.07334151,0.00027644,55]
[394773995,1763935831824,-587.0,0.0002939,2]
[394773996,1763935831833,-153.71,0.00029661,2]
[394773998,1763935831843,-173.07334151,0.00030343,61]
[394774000,1763935831853,-823.0,0.00031838,2]
[394774001,1763935831862,-1000.0,0.00032001,3]
[394774002,1763935831871,-490.07219556,0.00032633,2]
[394774003,1763935831880,-173.07334151,0.00033043,68]
[394774004,1763935831889,-622.82,0.00033165,2]
[394774005,1763935831898,-1000.0,0.00034336,3]
[394774006,1763935831907,-1152.0,0.00034489,2]
[394774007,1763935831917,-153.71,0.00034605,2]
[394774008,1763935831926,-571.0,0.00034828,2]
[394774009,1763935831935,-1049.80511407,0.00034828,2]
[394774010,1763935831943,-1180.46,0.00034951,2]
[394774011,1763935831952,-152.56,0.00035045,2]
[394774012,1763935831961,-500.0,0.00035381,2]
[394774013,1763935831970,-1000.0,0.00035552,3]
[394774014,1763935831979,-4549.36,0.0003577,2]
[394774015,1763935831987,-272.36900702,0.00036222,2]
[394774016,1763935831996,-150.0,0.00037119,2]
[394774017,1763935832005,-150.0,0.00037119,2]
[394774018,1763935832015,-1000.0,0.0003717,2]
[394774019,1763935832025,-150.0,0.00037217,2]
[394774020,1763935832034,-152.56,0.00037235,2]
[394774021,1763935832043,-15441.70238988,0.00037251,2]
[394774022,1763935832055,-7007.57992119,0.00037251,2]
[394774023,1763935832065,-500.0,0.00037273,5]
[394774024,1763935832074,-1601.0,0.00037332,2]
[394774025,1763935832084,-840.0,0.00037332,2]
[394774026,1763935832093,-1256.0,0.00037332,2]
[394774027,1763935832102,-659.0,0.00037332,2]
[394774028,1763935832111,-1192.0,0.00037332,2]
[394774029,1763935832120,-908.0,0.00037332,2]
[394774030,1763935832130,-6497.0,0.00037332,2]
[394774031,1763935832138,-252.0,0.00037332,2]
[394774032,1763935832148,-561.0,0.00037332,2]
[394774033,1763935832158,-1613.0,0.00037361,2]
[394774034,1763935832167,-233.98,0.00037572,2]
[394774035,1763935832176,-500.0,0.00037643,5]
[394774036,1763935832186,-6528.56,0.00037683,2]
[394774037,1763935832199,-250.0,0.0003769,2]
[394774038,1763935832208,-510.0,0.00037693,2]
[394774039,1763935832217,-2064.332,0.00037765,49]
[394774040,1763935832227,-156.17,0.00037765,49]
[394774041,1763935832236,-576.0,0.00037996,2]
[394774042,1763935832245,-609.0,0.00037996,2]
[394774043,1763935832255,-1320.0,0.00037996,2]
[394774044,1763935832265,-899.9786,0.00038046,2]
[394774045,1763935832274,-1854.0,0.00038048,7]
[394774046,1763935832283,-1000.0,0.00038055,3]
[394774047,1763935832292,-437.07502368,0.00038142,8]
[394774048,1763935832302,-1000.0,0.00038145,3]
[394774049,1763935832311,-188.0,0.00038197,2]
[394774050,1763935832320,-2302.231,0.00038256,2]
[394774051,1763935832330,-235.0453,0.00038256,2]
[394774052,1763935832340,-280.5771,0.00038256,2]
[394774053,1763935832349,-4075.8433,0.00038256,2]
[394774054,1763935832359,-1778.0,0.00038267,7]
[394774055,1763935832368,-278.0,0.00038283,2]
[394774056,1763935832378,-1000.0,0.00038355,3]
[394774057,1763935832387,-500.0,0.00038356,8]
[394774058,1763935832396,-500.0,0.00038356,8]
[394774059,1763935832405,-500.0,0.00038356,8]
[394774060,1763935832415,-500.0,0.00038356,8]
[394774061,1763935832424,-500.0,0.00038356,8]
[394774062,1763935832433,-500.0,0.00038356,8]
[394774063,1763935832442,-500.0,0.00038356,8]
[394774064,1763935832451,-500.0,0.00038356,2]
[394774065,1763935832461,-500.0,0.00038356,8]
[394774066,1763935832470,-500.0,0.00038356,8]
[394774067,1763935832480,-500.0,0.00038356,8]
[394774068,1763935832489,-500.0,0.00038356,8]
[394774069,1763935832498,-500.0,0.00038356,8]
[394774070,1763935832507,-500.0,0.00038356,8]
[394774071,1763935832516,-188.41822331,0.00038356,8]
[394774072,1763935832525,-500.0,0.00038356,8]
[394774073,1763935832535,-500.0,0.00038356,8]
[394774074,1763935832543,-300.0,0.00038356,2]
[394774075,1763935832553,-500.0,0.00038356,8]
[394774076,1763935832562,-263.92168133,0.00038356,8]
[394774077,1763935832572,-500.0,0.00038356,8]
[394774078,1763935832585,-500.0,0.00038356,8]
[394774079,1763935832594,-500.0,0.00038356,8]
[394774080,1763935832603,-500.0,0.00038356,8]
[394774081,1763935832612,-1411.21,0.00038356,14]
[394774082,1763935832625,-200.54592831,0.00038356,2]
[394774083,1763935832633,-1778.0,0.0003836,120]
[394774084,1763935832642,-1180.46,0.00038376,2]
[394774085,1763935832651,-4778.53899409,0.00038429,2]
[394774086,1763935832661,-11206.5862,0.00038429,2]
[394774087,1763935832670,-235.89696816,0.0003843,2]
[394774088,1763935832678,-1000.0,0.0003843,2]
[394774089,1763935832688,-2500.0,0.0003843,2]
[394774090,1763935832697,-5000.0,0.0003843,30]
[394774091,1763935832706,-1735.06960478,0.00038441,2]
[394774092,1763935832715,-163.87865574,0.00038441,15]
[394774093,1763935832724,-287.79704335,0.00038441,2]
[394774094,1763935832732,-1043.26,0.00038506,120]
[394774095,1763935832741,-500.0,0.00038529,8]
[394774096,1763935832750,-500.0,0.00038529,8]
[394774097,1763935832759,-500.0,0.00038529,8]
[394774098,1763935832768,-526.24649729,0.00038529,8]
[394774099,1763935832777,-500.0,0.00038529,8]
[394774100,1763935832786,-500.0,0.00038529,8]
[394774101,1763935832795,-500.0,0.00038529,8]
[394774102,1763935832804,-349.6885912,0.00038529,8]
[394774103,1763935832814,-500.0,0.00038529,8]
[394774104,1763935832824,-500.0,0.00038529,8]
[394774105,1763935832833,-500.0,0.00038529,8]
[394774106,1763935832842,-500.0,0.00038529,8]
[394774107,1763935832851,-500.0,0.00038529,8]
[394774108,1763935832860,-500.0,0.00038529,8]
[394774109,1763935832869,-500.0,0.00038529,8]
[394774110,1763935832878,-500.0,0.00038529,8]
[394774111,1763935832887,-500.0,0.00038529,8]
[394774112,1763935832896,-500.0,0.00038529,8]
[394774113,1763935832905,-440.98923791,0.00038529,8]
[394774114,1763935832914,-500.0,0.00038529,8]
[394774115,1763935832923,-500.0,0.00038529,8]
[394774116,1763935832932,-500.0,0.00038529,8]
[394774117,1763935832942,-500.0,0.00038529,8]
[394774118,1763935832951,-341.2946368,0.00038529,8]
[394774119,1763935832963,-500.0,0.00038529,8]
[394774120,1763935832973,-500.0,0.00038529,8]
[394774121,1763935832982,-500.0,0.00038529,8]
[394774122,1763935832992,-500.0,0.00038529,8]
[394774123,1763935833001,-500.0,0.00038529,8]
[394774124,1763935833010,-324.11724164,0.00038529,8]
[394774125,1763935833019,-500.0,0.00038529,8]
[394774126,1763935833028,-500.0,0.00038529,8]
[394774127,1763935833038,-500.0,0.00038529,8]
[394774128,1763935833048,-500.0,0.00038529,8]
[394774129,1763935833057,-500.0,0.00038529,8]
[394774130,1763935833066,-500.0,0.00038529,8]
[394774131,1763935833076,-500.0,0.00038529,8]
[394774132,1763935833085,-500.0,0.00038529,8]
[394774133,1763935833094,-500.0,0.00038529,8]
[394774134,1763935833103,-500.0,0.00038529,8]
[394774135,1763935833113,-500.0,0.00038529,8]
[394774136,1763935833122,-406.04663934,0.00038529,8]
[394774137,1763935833132,-492.04823241,0.00038529,8]
[394774138,1763935833142,-500.0,0.00038529,8]
[394774139,1763935833152,-537.29,0.00038529,8]
[394774140,1763935833161,-500.0,0.00038529,8]
[394774141,1763935833171,-261.05732626,0.00038529,8]
[394774142,1763935833180,-500.0,0.00038529,2]
[394774143,1763935833190,-500.0,0.00038529,8]
[394774144,1763935833199,-500.0,0.00038529,8]
[394774145,1763935833209,-500.0,0.00038529,8]
[394774146,1763935833218,-500.0,0.00038529,8]
[394774147,1763935833228,-500.0,0.00038529,2]
[394774148,1763935833238,-500.0,0.00038529,8]
[394774149,1763935833247,-500.0,0.00038529,8]
[394774150,1763935833257,-500.0,0.00038529,8]
[394774151,1763935833266,-500.0,0.00038529,8]
[394774152,1763935833275,-500.0,0.00038529,8]
[394774153,1763935833284,-500.0,0.00038529,8]
[394774154,1763935833294,-535.92,0.00038529,8]
[394774155,1763935833303,-500.0,0.00038529,2]
[394774156,1763935833312,-500.0,0.00038529,8]
[394774157,1763935833322,-437.28300938,0.00038529,8]
[394774158,1763935833331,-632.64494355,0.00038529,8]
[394774159,1763935833344,-500.0,0.00038529,8]
[394774160,1763935833354,-500.0,0.00038529,8]
[394774161,1763935833363,-500.0,0.00038529,8]
[394774162,1763935833372,-500.0,0.00038529,8]
[394774163,1763935833381,-500.0,0.00038529,8]
[394774164,1763935833390,-1432.38,0.00038529,8]
[394774165,1763935833399,-500.0,0.00038529,8]
[394774166,1763935833408,-500.0,0.00038529,8]
[394774167,1763935833417,-440.93299329,0.00038529,8]
[394774168,1763935833426,-500.0,0.00038529,8]
[394774169,1763935833435,-500.0,0.00038529,8]
[394774170,1763935833444,-500.0,0.00038529,8]
[394774171,1763935833453,-500.0,0.00038529,8]
[394774172,1763935833462,-500.0,0.00038529,8]
[394774173,1763935833471,-1587.79,0.00038529,8]
[394774174,1763935833480,-500.0,0.00038529,8]
[394774175,1763935833490,-500.0,0.00038529,8]
[394774176,1763935833499,-485.15673483,0.00038529,8]
[394774177,1763935833507,-500.0,0.00038529,8]
[394774178,1763935833517,-500.0,0.00038529,2]
[394774179,1763935833526,-500.0,0.00038529,8]
[394774180,1763935833535,-500.0,0.00038529,8]
[394774181,1763935833544,-500.0,0.00038529,8]
[394774182,1763935833553,-500.0,0.00038529,8]
[394774183,1763935833563,-500.0,0.00038529,8]
[394774184,1763935833573,-500.0,0.00038529,8]
[394774185,1763935833582,-500.0,0.00038529,8]
[394774186,1763935833591,-500.0,0.00038529,10]
[394774187,1763935833601,-500.0,0.00038529,8]
[394774188,1763935833611,-500.0,0.00038529,8]
[394774189,1763935833624,-500.0,0.00038529,8]
[394774190,1763935833634,-500.0,0.00038529,8]
[394774191,1763935833643,-500.0,0.00038529,8]
[394774192,1763935833653,-500.0,0.00038529,8]
[394774193,1763935833664,-500.0,0.00038529,8]
[394774194,1763935833674,-500.0,0.00038529,8]
[394774195,1763935833683,-500.0,0.00038529,8]
[394774196,1763935833692,-500.0,0.00038529,8]
[394774197,1763935833703,-500.0,0.00038529,8]
[394774198,1763935833712,-265.15334387,0.00038529,15]
[394774199,1763935833722,-286.54784607,0.00038529,15]
[394774200,1763935833732,-500.0,0.00038529,15]
[394774201,1763935833743,-500.0,0.00038529,15]
[394774202,1763935833752,-607.7298437,0.00038529,15]
[394774203,1763935833761,-617.84831067,0.00038529,2]
[394774204,1763935833771,-500.0,0.00038529,2]
[394774205,1763935833780,-500.0,0.00038529,15]
[394774206,1763935833789,-500.0,0.00038529,15]
[394774207,1763935833799,-291.63305357,0.00038529,2]
[394774208,1763935833808,-500.0,0.00038529,15]
[394774209,1763935833817,-500.0,0.00038529,15]
[394774210,1763935833827,-360.14247966,0.00038529,15]
[394774211,1763935833836,-500.0,0.00038529,15]
[394774212,1763935833845,-500.0,0.00038529,15]
[394774213,1763935833855,-500.0,0.00038529,15]
[394774214,1763935833863,-500.0,0.00038529,15]
[394774215,1763935833872,-500.0,0.00038529,15]
[394774216,1763935833881,-500.0,0.00038529,15]
[394774217,1763935833891,-500.0,0.00038529,15]
[394774218,1763935833900,-500.0,0.00038529,15]
[394774219,1763935833909,-500.0,0.00038529,15]
[394774220,1763935833919,-500.0,0.00038529,15]
[394774221,1763935834097,-500.0,0.00038529,15]
[394774222,1763935834144,-500.0,0.00038529,15]
[394774223,1763935834154,-500.0,0.00038529,15]
[394774224,1763935834164,-150.0,0.00038529,15]
[394774225,1763935834173,-155.77675085,0.00038529,15]
[394774226,1763935834183,-402.53559378,0.00038529,7]
[394774227,1763935834193,-500.0,0.00038529,15]
[394774228,1763935834203,-500.0,0.00038529,2]
[394774229,1763935834212,-500.0,0.00038529,15]
[394774230,1763935834221,-500.0,0.00038529,15]
[394774231,1763935834231,-260.30625245,0.00038529,15]
[394774232,1763935834240,-500.0,0.00038529,2]
[394774233,1763935834250,-500.0,0.00038529,15]
[394774234,1763935834259,-500.0,0.00038529,15]
[394774235,1763935834268,-577.62551188,0.00038529,2]
[394774236,1763935834277,-500.0,0.00038529,15]
[394774237,1763935834286,-8854.88882304,0.0003853,21]
[394774238,1763935834295,-433955.66808456,0.0003853,2]
[394774239,1763935834309,-33175.35373103,0.0003853,2]
[394774240,1763935834320,-71762.87486842,0.0003853,2]
[394774241,1763935834332,-14925.40468306,0.0003853,2]
[394774244,1763935837573,-173.07334151,0.00035742,74]
[394774245,1763935837583,-500.0,0.00038529,8]
[394774246,1763935837592,-288.49102909,0.0003853,2]
[394774247,1763935837632,-1446.62639381,0.0003853,2]
[394774449,1763935839489,-1020.55633888,0.00037332,2]
[394774451,1763935839500,-1638.44366112,0.00037332,2]
[394774453,1763935839510,-173.07334151,0.00038441,81]
[394774455,1763935839519,-459.48532761,0.00038529,8]
[394774458,1763935839529,-500.0,0.00038529,8]
[394774460,1763935839538,-4678.07766976,0.0003853,2]
[394774462,1763935839549,-14986.66347332,0.0003853,2]
[394774469,1763935839604,-497.31812068,0.0003853,2]
[394774482,1763935839721,-1319.24244697,0.0003853,2]
[394774484,1763935839732,-1765.70100588,0.0003853,2]
[394774499,1763935839888,-1318.75,0.0003853,2]
[394774503,1763935843242,-508.01591434,0.0003853,2]
[394774504,1763935843254,-1416.8606728,0.0003853,2]
[394774505,1763935843304,-5265.3587318,0.0003853,2]
[394774506,1763935843315,-17624.0,0.0003853,2]
[394774507,1763935843326,-1345.88845418,0.0003853,2]
[394774508,1763935843339,-1108.88047643,0.0003853,2]
[394774509,1763935843351,-1058.32946893,0.0003853,2]
[394774510,1763935843362,-537.47173744,0.0003853,2]
[394774511,1763935844153,-131056.43809863,0.0003853,2]
[394774512,1763935844165,-820.02695401,0.0003853,2]
[394774513,1763935844215,-276.66474391,0.0003853,2]
[394774514,1763935844227,-10335.26202311,0.0003853,2]
[394774515,1763935844238,-8526.63121784,0.0003853,2]
[394774516,1763935844247,-876.0,0.0003854,20]
[394774517,1763935844257,-1000.0,0.00038563,2]
[394774518,1763935844266,-481.70785925,0.00038573,5]
[394774519,1763935844275,-500.0,0.00038573,5]
[394774520,1763935844285,-500.0,0.00038573,5]
[394774521,1763935844295,-164.86773669,0.00038573,5]
[394774522,1763935844304,-14264.6223766,0.00038603,2]
[394774523,1763935844314,-500.0,0.0003863,8]
[394774524,1763935844324,-500.0,0.0003863,8]
[394774525,1763935844334,-500.0,0.0003863,8]
[394774526,1763935844344,-500.0,0.0003863,2]
[394774527,1763935844353,-500.0,0.0003863,8]
[394774528,1763935844364,-357.95791965,0.0003863,8]
[394774529,1763935844373,-417.24434341,0.0003863,8]
[394774530,1763935844383,-453.92634153,0.0003863,8]
[394774531,1763935844393,-500.0,0.0003863,8]
[394774532,1763935844403,-500.0,0.0003863,8]
[394774533,1763935844412,-500.0,0.0003863,8]
[394774534,1763935844422,-300.0,0.0003863,2]
[394774535,1763935844432,-500.0,0.0003863,8]
[394774536,1763935844441,-500.0,0.0003863,8]
[394774537,1763935844451,-305.86511737,0.0003863,8]
[394774538,1763935844460,-1411.21,0.0003863,30]
[394774539,1763935844470,-4778.53899403,0.00038704,2]
[394774540,1763935844479,-1735.06960478,0.00038714,2]
[394774541,1763935844488,-287.79704332,0.00038792,2]
[394774542,1763935844497,-500.0,0.00038803,8]
[394774543,1763935844507,-324.91121979,0.00038803,8]
[394774544,1763935844516,-500.0,0.00038803,8]
[394774545,1763935844526,-500.0,0.00038803,8]
[394774546,1763935844534,-500.0,0.00038803,8]
[394774547,1763935844544,-500.0,0.00038803,8]
[394774548,1763935844553,-500.0,0.00038803,8]
[394774549,1763935844562,-500.0,0.00038803,8]
[394774550,1763935844572,-500.0,0.00038803,8]
[394774551,1763935844582,-500.0,0.00038803,8]
[394774552,1763935844592,-500.0,0.00038803,8]
[394774553,1763935844602,-500.0,0.00038803,8]
[394774554,1763935844612,-500.0,0.00038803,8]
[394774555,1763935844624,-500.0,0.00038803,8]
[394774556,1763935844640,-335.79522328,0.00038803,8]
[394774557,1763935844649,-537.29,0.00038803,8]
[394774558,1763935844659,-500.0,0.00038803,2]
[394774559,1763935844669,-500.0,0.00038803,8]
[394774560,1763935844679,-500.0,0.00038803,8]
[394774561,1763935844689,-500.0,0.00038803,8]
[394774562,1763935844699,-500.0,0.00038803,2]
[394774563,1763935844708,-500.0,0.00038803,8]
[394774564,1763935844719,-500.0,0.00038803,8]
[394774565,1763935844728,-500.0,0.00038803,8]
[394774566,1763935844737,-535.92,0.00038803,8]
[394774567,1763935844746,-500.0,0.00038803,8]
[394774568,1763935844755,-500.0,0.00038803,8]
[394774569,1763935844764,-500.0,0.00038803,8]
[394774570,1763935844774,-500.0,0.00038803,8]
[394774571,1763935844784,-500.0,0.00038803,8]
[394774572,1763935844793,-500.0,0.00038803,8]
[394774573,1763935844803,-1432.38,0.00038803,8]
[394774574,1763935844812,-500.0,0.00038803,8]
[394774575,1763935844821,-500.0,0.00038803,8]
[394774576,1763935844831,-500.0,0.00038803,8]
[394774577,1763935844841,-1587.79,0.00038803,8]
[394774578,1763935844850,-500.0,0.00038803,8]
[394774579,1763935844859,-500.0,0.00038803,8]
[394774580,1763935844869,-500.0,0.00038803,8]
[394774581,1763935844878,-500.0,0.00038803,8]
[394774582,1763935844887,-224.58367162,0.00038803,8]
[394774583,1763935844897,-500.0,0.00038803,8]
[394774584,1763935844906,-500.0,0.00038803,8]
[394774585,1763935844915,-500.0,0.00038803,8]
[394774586,1763935844924,-500.0,0.00038803,10]
[394774587,1763935844933,-500.0,0.00038803,8]
[394774588,1763935844943,-500.0,0.00038803,8]
[394774589,1763935844952,-500.0,0.00038803,8]
[394774590,1763935844961,-500.0,0.00038803,8]
[394774591,1763935844971,-500.0,0.00038803,8]
[394774592,1763935844980,-500.0,0.00038803,8]
[394774593,1763935844989,-500.0,0.00038803,8]
[394774594,1763935844998,-500.0,0.00038803,8]
[394774595,1763935845007,-500.0,0.00038803,8]
[394774596,1763935845016,-500.0,0.00038803,8]
[394774597,1763935845026,-500.0,0.00038803,8]
[394774598,1763935845035,-500.0,0.00038803,8]
[394774599,1763935845045,-646.7123,0.00038888,30]
[394774600,1763935845054,-500.0,0.00038904,8]
[394774601,1763935845063,-500.0,0.00038904,8]
[394774602,1763935845072,-500.0,0.00038904,8]
[394774603,1763935845093,-500.0,0.00038904,8]
[394774604,1763935845103,-500.0,0.00038904,8]
[394774605,1763935845114,-500.0,0.00038904,8]
[394774606,1763935845123,-312.44792366,0.00038904,8]
[394774607,1763935845132,-287.85314824,0.00038904,8]
[394774608,1763935845142,-500.0,0.00038904,8]
[394774609,1763935845152,-1411.21,0.00038904,30]
[394774610,1763935845161,-163.87865574,0.00038933,15]
[394774612,1763935845170,-876.0,0.00038938,20]
[394774613,1763935845180,-4778.53899403,0.00038978,2]
[394774614,1763935845189,-1735.06960478,0.00038987,2]
[394774615,1763935845199,-188.0,0.00039028,7]
[394774616,1763935845208,-188.0,0.00039075,2]
[394774617,1763935845218,-515.52099885,0.00039077,8]
[394774618,1763935845228,-500.0,0.00039077,8]
[394774620,1763935845238,-500.0,0.00039077,8]
[394774622,1763935845247,-500.0,0.00039077,8]
[394774623,1763935845256,-500.0,0.00039077,8]
[394774624,1763935845266,-500.0,0.00039077,8]
[394774625,1763935845275,-500.0,0.00039077,8]
[394774626,1763935845284,-500.0,0.00039077,8]
[394774627,1763935845293,-201.25200634,0.00039077,8]
[394774628,1763935845303,-500.0,0.00039077,8]
[394774629,1763935845311,-500.0,0.00039077,8]
[394774630,1763935845321,-500.0,0.00039077,8]
[394774631,1763935845330,-500.0,0.00039077,8]
[394774632,1763935845339,-537.29,0.00039077,8]
[394774633,1763935845348,-500.0,0.00039077,8]
[394774634,1763935845357,-500.0,0.00039077,8]
[394774635,1763935845367,-510.17461485,0.00039077,8]
[394774636,1763935845386,-500.0,0.00039077,2]
[394774637,1763935845395,-596.55730372,0.00039077,8]
[394774638,1763935845404,-500.0,0.00039077,8]
[394774639,1763935845414,-500.0,0.00039077,8]
[394774640,1763935845423,-535.92,0.00039077,8]
[394774641,1763935845432,-528.72304304,0.00039077,8]
[394774642,1763935845442,-500.0,0.00039077,8]
[394774643,1763935845451,-500.0,0.00039077,8]
[394774644,1763935845460,-500.0,0.00039077,8]
[394774645,1763935845469,-500.0,0.00039077,8]
[394774646,1763935845478,-500.0,0.00039077,8]
[394774647,1763935845487,-1432.38,0.00039077,8]
[394774648,1763935845497,-312.0110384,0.00039077,8]
[394774649,1763935845506,-581.68354013,0.00039077,8]
[394774650,1763935845515,-500.0,0.00039077,8]
[394774651,1763935845524,-1587.79,0.00039077,8]
[394774652,1763935845533,-500.0,0.00039077,8]
[394774654,1763935845542,-377.74629415,0.00039077,8]
[394774655,1763935845551,-500.0,0.00039077,8]
[394774656,1763935845560,-500.0,0.00039077,8]
[394774657,1763935845569,-505.46262457,0.00039077,8]
[394774658,1763935845578,-500.0,0.00039077,8]
[394774659,1763935845588,-500.0,0.00039077,8]
[394774660,1763935845597,-500.0,0.00039077,8]
[394774661,1763935845606,-500.0,0.00039077,8]
[394774662,1763935845616,-500.0,0.00039077,8]
[394774663,1763935845627,-479.37020879,0.00039077,8]
[394774664,1763935845636,-500.0,0.00039077,8]
[394774665,1763935845645,-500.0,0.00039077,8]